bitfinex/quotes_SOLUSD_20220302
["timestamp","ask_amount","ask_price","bid_price","bid_amount"]
[1646207172703,17.86790369,102.02,101.94,152.01804003]
[1646207172905,17.86790369,102.02,101.94,47.4135]
[1646207173405,32.58020369,102.02,101.95,52.0409325]
[1646207174205,108.278,102.05,101.95,54.58997253]
[1646207175006,14.7104,102.04,101.95,69.30007253]
[1646207175205,59.93351955,102.03,101.95,69.30007253]
[1646207177011,74.64431955,102.03,101.95,69.30007253]
[1646207177711,11.54,102.05,101.95,166.79007253]
[1646207177911,88.0541,102.07,101.95,166.79007253]
[1646207178115,15.46,102.07,101.96,3.92]
[1646207178312,24.4558,102.08,101.98,97.49]
[1646207178611,60.22720783,102.07,101.99,32.03474196]
[1646207178813,60.22720783,102.07,101.99,34.58378199]
[1646207179412,74.93230783,102.07,101.99,49.28738199]
[1646207181519,78.85230783,102.07,101.99,49.28738199]
[1646207182116,74.93230783,102.07,101.99,49.28738199]
[1646207184319,30.1633,102.09,101.99,146.77738199]
[1646207184519,14.7033,102.09,102.0,2.54904003]
[1646207184718,74.8446,102.11,102.01,14.7008]
[1646207185117,74.8446,102.11,102.01,114.73984003]
[1646207185519,60.55699993,102.1,102.02,52.0409325]
[1646207185937,14.7005,102.11,102.02,166.78007253]
[1646207186135,57.9154,102.14,102.03,110.090792]
[1646207186336,52.9154,102.14,102.03,97.49]
[1646207186537,15.459,102.14,102.04,2.54904003]
[1646207186839,14.6977,102.13,102.04,2.54904003]
[1646207187036,48.32659446,102.12,102.05,32.03474196]
[1646207190640,160.51479446,102.12,102.05,32.03474196]
[1646207191640,172.05479446,102.12,102.05,32.03474196]
[1646207192041,74.56479446,102.12,102.05,32.03474196]
[1646207193246,160.51479446,102.12,102.05,32.03474196]
[1646207193645,63.02479446,102.12,102.05,32.03474196]
[1646207194451,160.51479446,102.12,102.05,32.03474196]
[1646207194646,63.02479446,102.12,102.05,32.03474196]
[1646207195446,160.51479446,102.12,102.05,32.03474196]
[1646207195745,63.02479446,102.12,102.05,32.03474196]
[1646207195948,43.3033,102.14,102.05,32.03474196]
[1646207196147,39.3853,102.14,102.05,32.03474196]
[1646207196849,51.47349378,102.13,102.05,32.03474196]
[1646207197054,66.17029378,102.13,102.05,32.03474196]
[1646207197546,163.66029378,102.13,102.05,32.03474196]
[1646207199148,66.17029378,102.13,102.05,32.03474196]
[1646207199348,124.68029378,102.13,102.05,32.03474196]
[1646207199552,136.22029378,102.13,102.05,32.03474196]
[1646207201153,97.49,102.12,102.05,32.03474196]
[1646207201451,112.1915,102.1,102.02,46.7677]
[1646207202252,156.0,102.08,101.98,2.54904003]
[1646207202450,71.37975385,102.09,102.02,50.69008859]
[1646207202650,45.13745385,102.09,102.02,50.69008859]
[1646207203452,47.573,102.12,102.02,162.87988859]
[1646207204250,97.49,102.13,102.02,65.38988859]
[1646207204450,68.98027358,102.12,102.02,65.38988859]
[1646207205750,68.98027358,102.12,102.02,70.38988859]
[1646207207754,68.98027358,102.12,102.02,65.38988859]
[1646207207954,93.48677358,102.12,102.02,70.38988859]
[1646207208154,93.48677358,102.12,102.02,65.38988859]
[1646207208354,93.48677358,102.12,102.02,70.38988859]
[1646207208954,93.48677358,102.12,102.02,167.87988859]
[1646207209154,93.48677358,102.12,102.02,70.38988859]
[1646207209360,93.48677358,102.12,102.02,65.38988859]
[1646207209557,93.48677358,102.12,102.02,70.38988859]
[1646207210961,78.78877358,102.12,102.02,65.38988859]
[1646207211259,78.78877358,102.12,102.02,70.38988859]
[1646207211657,78.78877358,102.12,102.02,65.38988859]
[1646207211861,78.78877358,102.12,102.02,70.38988859]
[1646207212758,78.78877358,102.12,102.02,95.28078859]
[1646207212957,78.78877358,102.12,102.02,192.77078859]
[1646207213158,78.78877358,102.12,102.02,213.63811013]
[1646207215762,78.78877358,102.12,102.02,208.63811013]
[1646207215962,78.78877358,102.12,102.02,213.63811013]
[1646207216364,176.27877358,102.12,102.02,116.14811013]
[1646207216562,176.27877358,102.12,102.02,95.28078859]
[1646207218367,176.27877358,102.12,102.03,5.0]
[1646207218565,78.78877358,102.12,102.04,50.6309259]
[1646207218769,24.5065,102.12,102.04,150.66996593]
[1646207219066,47.1869,102.14,102.05,2.54904003]
[1646207219269,23.3958,102.14,102.05,2.54904003]
[1646207219865,59.12743576,102.13,102.06,48.14104856]
[1646207220269,3.14688978,102.11,102.06,48.14104856]
[1646207221068,11.54,102.13,102.06,48.14104856]
[1646207221271,59.1252,102.14,102.06,48.14104856]
[1646207222073,97.49,102.12,102.06,48.14104856]
[1646207222271,11.17351229,102.11,102.06,48.14104856]
[1646207222671,11.17351229,102.11,102.04,24.3434]
[1646207223674,11.17351229,102.11,102.05,55.35354376]
[1646207224875,112.1896,102.12,102.05,55.35354376]
[1646207225976,167.90434283,102.12,102.05,55.35354376]
[1646207226274,179.44434283,102.12,102.05,55.35354376]
[1646207226476,81.95434283,102.12,102.05,55.35354376]
[1646207227495,97.49,102.11,102.05,55.35354376]
[1646207227795,6.55958271,102.1,102.05,55.35354376]
[1646207228896,104.04958271,102.1,102.03,2.54904003]
[1646207229896,115.58958271,102.1,102.04,52.62423884]
[1646207230098,130.29138271,102.1,102.04,52.62423884]
[1646207231697,32.80138271,102.1,102.04,52.62423884]
[1646207231898,130.29138271,102.1,102.04,52.62423884]
[1646207232098,32.80138271,102.1,102.04,52.62423884]
[1646207232298,32.80138271,102.1,102.03,2.54904003]
[1646207232499,99.61938271,102.1,102.01,2.54904003]
[1646207232700,146.75128271,102.1,102.01,2.54904003]
[1646207232899,97.49,102.09,102.0,23.9694]
[1646207233102,112.1962,102.07,102.0,23.9694]
[1646207233301,150.17771309,102.06,102.0,59.28731565]
[1646207233500,52.68771309,102.06,102.0,59.28731565]
[1646207235005,150.17771309,102.06,102.0,59.28731565]
[1646207235205,52.68771309,102.06,102.0,59.28731565]
[1646207237012,52.68771309,102.06,101.99,23.3272]
[1646207237411,164.88431309,102.06,101.99,2.54904003]
[1646207237612,164.88431309,102.06,101.97,112.9]
[1646207237613,157.52271309,102.06,101.96,39.0353761]
[1646207237912,97.49,102.04,101.96,21.17654003]
[1646207238115,9.58661245,102.03,101.96,61.14726397]
[1646207238311,114.91061245,102.03,101.96,58.59822394]
[1646207238511,97.49,102.02,101.96,58.59822394]
[1646207238912,52.68771309,102.01,101.96,3.92]
[1646207239115,150.17771309,102.01,101.96,3.92]
[1646207239414,52.68771309,102.01,101.96,3.92]
[1646207239614,67.40131309,102.01,101.96,3.92]
[1646207240015,67.40131309,102.01,101.96,50.33735112]
[1646207240816,52.68771309,102.01,101.96,50.33735112]
[1646207241615,14.7117,102.03,101.96,50.33735112]
[1646207241818,11.54,102.04,101.96,52.88639115]
[1646207242017,23.4265,102.05,101.96,185.95171269]
[1646207242217,23.4265,102.05,101.96,206.35958879]
[1646207242415,23.4265,102.05,101.96,217.89958879]
[1646207244119,23.4265,102.05,101.96,222.89958879]
[1646207244520,23.4265,102.05,101.96,217.89958879]
[1646207244718,23.4265,102.05,101.96,237.41938879]
[1646207245620,23.4265,102.05,101.96,350.31938879]
[1646207246121,23.4265,102.05,101.96,345.31938879]
[1646207246322,23.4265,102.05,101.96,350.31938879]
[1646207247925,26.35553129,102.05,101.96,350.31938879]
[1646207248323,23.4265,102.05,101.96,350.31938879]
[1646207250730,11.54,102.08,101.96,350.31938879]
[1646207250930,3.92,102.09,101.98,97.49]
[1646207251138,3.92,102.09,101.99,37.2509]
[1646207251332,3.92,102.09,101.99,39.79994003]
[1646207251733,3.92,102.09,102.0,2.54904003]
[1646207251935,56.41686977,102.08,102.01,37.65832334]
[1646207252235,56.41686977,102.08,102.01,52.35962334]
[1646207252434,56.41686977,102.08,102.01,37.65832334]
[1646207256265,14.7036,102.09,102.01,37.65832334]
[1646207257264,69.26690318,102.09,102.01,37.65832334]
[1646207257864,73.18590318,102.09,102.01,37.65832334]
[1646207258466,69.26690318,102.09,102.01,37.65832334]
[1646207260766,80.80690318,102.09,102.01,37.65832334]
[1646207262068,80.80690318,102.09,102.01,37.15832334]
[1646207263973,66.10330318,102.09,102.01,54.40886337]
[1646207265072,54.56330318,102.09,102.01,54.40886337]
[1646207265672,46.4914,102.1,102.01,54.40886337]
[1646207265977,3.919,102.12,102.01,178.75198851]
[1646207266175,3.919,102.14,102.05,14.6938]
[1646207266472,3.919,102.14,102.05,17.24284003]
[1646207266675,48.4131619,102.14,102.06,43.43312205]
[1646207269179,160.5991619,102.14,102.06,43.43312205]
[1646207269474,197.59489795,102.14,102.04,46.844]
[1646207269673,23.1073,102.13,102.04,46.844]
[1646207269875,120.5973,102.13,102.04,46.844]
[1646207270374,14.36116365,102.12,102.04,99.3970903]
[1646207270975,29.05986365,102.12,102.04,99.3970903]
[1646207277180,27.0253,102.13,102.04,237.26689701]
[1646207277380,23.1073,102.13,102.04,243.28089701]
[1646207277580,23.1073,102.13,102.04,160.08073098]
[1646207277780,23.1073,102.13,102.04,171.62073098]
[1646207278181,55.99355891,102.12,102.04,171.62073098]
[1646207278381,55.99355891,102.12,102.04,165.60673098]
[1646207278982,23.1073,102.13,102.04,180.09523098]
[1646207279182,23.1073,102.13,102.04,277.58523098]
[1646207280186,67.27943583,102.13,102.04,277.58523098]
[1646207282090,23.1073,102.13,102.04,277.58523098]
[1646207282688,23.1073,102.13,102.04,282.58523098]
[1646207283291,71.30241314,102.13,102.04,282.58523098]
[1646207284089,23.1073,102.13,102.04,282.58523098]
[1646207284290,23.1073,102.13,102.04,277.58523098]
[1646207284694,23.1073,102.13,102.04,282.58523098]
[1646207284890,23.1073,102.13,102.04,277.58523098]
[1646207285089,85.54214653,102.15,102.04,282.58523098]
[1646207285497,85.54214653,102.15,102.04,277.58523098]
[1646207286091,85.54214653,102.15,102.04,263.29539701]
[1646207286290,23.0192,102.15,102.04,283.96327311]
[1646207286490,23.0192,102.15,102.04,286.01117883]
[1646207286690,23.0192,102.15,102.04,298.39434614]
[1646207286890,23.0192,102.15,102.04,303.39434614]
[1646207287091,23.0192,102.15,102.04,298.39434614]
[1646207287506,23.0192,102.15,102.06,97.49]
[1646207287708,23.0192,102.15,102.08,14.6911]
[1646207287907,23.0192,102.15,102.09,52.5530903]
[1646207291810,17.79393507,102.14,102.09,52.5530903]
[1646207292512,17.79393507,102.14,102.05,2.54904003]
[1646207292709,23.1035,102.13,102.05,25.90284003]
[1646207293508,44.98039048,102.12,102.06,47.6665229]
[1646207294613,23.1035,102.13,102.06,47.6665229]
[1646207295617,23.1035,102.13,102.06,62.3609229]
[1646207296621,19.8009596,102.12,102.06,62.3609229]
[1646207297021,19.8009596,102.12,102.06,47.6665229]
[1646207302631,37.8004,102.13,102.06,47.6665229]
[1646207303534,93.27025315,102.13,102.06,47.6665229]
[1646207304133,23.1035,102.13,102.06,47.6665229]
[1646207304333,23.1035,102.13,102.06,64.90966293]
[1646207304535,23.1035,102.13,102.06,88.04322961]
[1646207307940,13.08168291,102.12,102.06,88.04322961]
[1646207308740,13.08168291,102.12,102.06,47.6665229]
[1646207317875,13.08168291,102.12,102.04,65.44314004]
[1646207317876,134.40218291,102.12,102.04,2.54904003]
[1646207318083,134.40218291,102.12,102.03,15.0234]
[1646207318276,138.32018291,102.12,102.03,15.0234]
[1646207318477,149.86018291,102.12,102.03,15.0234]
[1646207318678,121.9685,102.11,102.03,15.0234]
[1646207318977,49.69264264,102.1,102.03,70.55333623]
[1646207319979,64.39374264,102.1,102.03,70.55333623]
[1646207320978,49.69264264,102.1,102.03,94.72690291]
[1646207321180,49.69264264,102.1,102.03,109.42560291]
[1646207321381,49.69264264,102.1,102.03,111.97464294]
[1646207326890,24.4785,102.11,102.03,242.09554833]
[1646207327090,26.9372,102.15,102.03,248.01354833]
[1646207327295,24.5424,102.14,102.04,134.84029251]
[1646207327494,24.5424,102.14,102.07,14.6921]
[1646207327892,42.98094428,102.13,102.08,28.04573822]
[1646207329491,24.5424,102.14,102.08,28.04573822]
[1646207330092,24.5424,102.14,102.07,2.54904003]
[1646207330295,24.5424,102.14,102.05,25.12614003]
[1646207330597,122.0324,102.14,102.05,22.5771]
[1646207331193,66.80143869,102.13,102.06,48.13771409]
[1646207336293,164.29143869,102.13,102.04,38.9011]
[1646207336494,22.6063,102.12,102.04,38.9011]
[1646207336695,37.3046,102.12,102.04,38.9011]
[1646207337194,10.66978686,102.11,102.05,54.32904824]
[1646207344702,25.36908686,102.11,102.05,54.32904824]
[1646207347005,22.6063,102.12,102.05,54.32904824]
[1646207348022,65.66712426,102.12,102.05,54.32904824]
[1646207349028,22.6063,102.12,102.05,99.13201492]
[1646207349327,39.0573311,102.15,102.05,231.80196034]
[1646207349328,41.6318,102.15,102.05,231.80196034]
[1646207349527,37.7138,102.15,102.06,3.916]
[1646207349926,51.63006864,102.14,102.07,29.24662621]
[1646207350125,51.63006864,102.14,102.06,6.46504003]
[1646207350126,14.6986,102.12,102.06,6.46504003]
[1646207350324,14.6986,102.12,102.04,24.197]
[1646207351127,11.14425691,102.11,102.05,42.8470826]
[1646207351324,25.84365691,102.11,102.05,42.8470826]
[1646207356330,14.6994,102.11,102.05,42.8470826]
[1646207356535,39.2772,102.13,102.05,42.8470826]
[1646207357331,51.46938839,102.12,102.05,42.8470826]
[1646207359635,43.1952,102.13,102.05,42.8470826]
[1646207360736,102.3404935,102.13,102.05,42.8470826]
[1646207362639,98.4224935,102.13,102.05,42.8470826]
[1646207365241,39.2772,102.13,102.05,45.39612263]
[1646207365442,24.58,102.13,102.05,64.00902263]
[1646207366040,37.7138,102.15,102.05,161.49902263]
[1646207366241,23.0192,102.15,102.07,97.49]
[1646207366549,8.916,102.18,102.09,112.1783]
[1646207366840,32.3822,102.18,102.1,2.54904003]
[1646207367043,23.4662,102.18,102.1,106.19504003]
[1646207367441,22.8285,102.19,102.11,140.76763188]
[1646207368246,22.8285,102.19,102.11,155.45353188]
[1646207368449,22.6382,102.21,102.12,2.54904003]
[1646207368649,3.915,102.22,102.12,2.54904003]
[1646207368852,3.915,102.23,102.12,37.06920191]
[1646207369050,3.915,102.23,102.13,97.49]
[1646207369248,3.915,102.23,102.14,42.8470826]
[1646207369449,126.7818311,102.26,102.14,42.8470826]
[1646207369450,21.7975311,102.26,102.15,97.49]
[1646207369654,21.7975311,102.26,102.15,155.92440539]
[1646207369655,8.914,102.26,102.15,155.92440539]
[1646207369848,8.914,102.26,102.15,158.47344542]
[1646207370149,5.0,102.26,102.17,97.49]
[1646207370351,5.0,102.26,102.2,42.8470826]
[1646207370549,12.98984771,102.28,102.2,147.2700826]
[1646207370749,49.69041493,102.26,102.2,49.7800826]
[1646207370948,49.69041493,102.26,102.2,42.8470826]
[1646207371753,3.912,102.29,102.2,42.8470826]
[1646207372149,14.6766,102.27,102.2,42.8470826]
[1646207372350,3.912,102.29,102.2,42.8470826]
[1646207372749,43.8126994,102.28,102.2,42.8470826]
[1646207373149,58.4875994,102.28,102.2,42.8470826]
[1646207373551,3.912,102.29,102.2,60.06922263]
[1646207373750,48.4573,102.3,102.2,80.07222263]
[1646207374150,48.4573,102.3,102.2,65.39912263]
[1646207374353,48.4573,102.3,102.2,79.89732263]
[1646207374551,45.74903717,102.29,102.2,79.89732263]
[1646207375150,45.74903717,102.29,102.22,40.72859185]
[1646207376153,63.1304,102.3,102.22,40.72859185]
[1646207377254,115.0523816,102.3,102.22,40.72859185]
[1646207378056,48.4573,102.3,102.22,40.72859185]
[1646207378260,14.6699,102.32,102.22,66.53053188]
[1646207378456,14.6699,102.32,102.23,97.49]
[1646207378656,14.6699,102.32,102.22,66.53053188]
[1646207378857,14.6699,102.32,102.22,57.94753188]
[1646207379057,48.01140457,102.31,102.22,43.27763188]
[1646207379258,14.76292098,102.29,102.22,40.72859185]
[1646207380059,23.8833,102.3,102.22,40.72859185]
[1646207380257,38.5564,102.3,102.22,40.72859185]
[1646207381057,93.1052471,102.3,102.22,40.72859185]
[1646207381458,93.1052471,102.3,102.22,43.27763188]
[1646207382266,93.1052471,102.3,102.22,40.72859185]
[1646207382865,38.5564,102.3,102.22,40.72859185]
[1646207383064,23.8833,102.3,102.22,140.76763188]
[1646207383464,23.8833,102.3,102.22,152.30763188]
[1646207383663,14.6702,102.32,102.22,152.30763188]
[1646207384066,23.8791,102.33,102.22,166.97783188]
[1646207384265,14.6672,102.34,102.22,188.9154706]
[1646207384466,49.1682,102.35,102.24,97.49]
[1646207384671,49.1682,102.35,102.24,103.762]
[1646207384869,49.1682,102.35,102.26,102.49]
[1646207385067,49.1682,102.35,102.26,114.03]
[1646207385268,49.1682,102.35,102.27,142.88612263]
[1646207385468,83.12873429,102.35,102.27,53.05912263]
[1646207385668,83.12873429,102.35,102.27,42.8470826]
[1646207386772,180.61873429,102.35,102.27,42.8470826]
[1646207386970,184.52673429,102.35,102.27,42.8470826]
[1646207387480,87.03673429,102.35,102.27,42.8470826]
[1646207388072,63.8331,102.35,102.27,140.3370826]
[1646207388271,63.8331,102.35,102.27,148.7910826]
[1646207388689,63.8331,102.35,102.27,51.3010826]
[1646207388888,63.8331,102.35,102.27,148.7910826]
[1646207389092,63.8331,102.35,102.27,51.3010826]
[1646207390588,63.8331,102.35,102.27,42.8470826]
[1646207390789,24.3005,102.35,102.28,97.49]
[1646207390989,24.3005,102.35,102.27,54.58012263]
[1646207391188,24.3005,102.35,102.27,45.39612263]
[1646207391390,24.3005,102.35,102.27,42.8470826]
[1646207391594,28.28762565,102.35,102.27,42.8470826]
[1646207391989,42.95252565,102.35,102.27,42.8470826]
[1646207392392,140.44252565,102.35,102.27,42.8470826]
[1646207392594,151.98252565,102.35,102.27,42.8470826]
[1646207392791,54.49252565,102.35,102.27,42.8470826]
[1646207393793,42.95252565,102.35,102.27,42.8470826]
[1646207395098,42.95252565,102.35,102.27,47.8470826]
[1646207395293,38.9654,102.35,102.27,145.3370826]
[1646207395495,24.3005,102.35,102.27,147.88612263]
[1646207395696,22.8073,102.36,102.27,154.42612263]
[1646207395898,24.4386,102.4,102.27,178.59427546]
[1646207396096,45.6283,102.39,102.29,19.6602]
[1646207396295,60.66556164,102.38,102.3,40.72859185]
[1646207396495,60.66556164,102.38,102.3,65.22069185]
[1646207397097,75.32626164,102.38,102.3,65.22069185]
[1646207397297,14.6607,102.38,102.3,165.25973188]
[1646207397499,45.6283,102.39,102.3,82.42833188]
[1646207397701,45.6283,102.39,102.3,89.44233188]
[1646207398200,45.6283,102.39,102.3,186.93233188]
[1646207398798,45.6283,102.39,102.3,89.44233188]
[1646207399000,60.2878,102.39,102.3,94.44233188]
[1646207399199,7.37516351,102.38,102.3,72.76973188]
[1646207399598,7.37516351,102.38,102.3,65.22069185]
[1646207399998,22.03566351,102.38,102.3,70.22069185]
[1646207400203,22.03566351,102.38,102.32,42.8470826]
[1646207400400,14.6605,102.38,102.32,42.8470826]
[1646207402404,45.6283,102.39,102.32,42.8470826]
[1646207403203,14.6587,102.4,102.32,140.3370826]
[1646207403405,78.0174,102.42,102.32,142.88612263]
[1646207403604,47.9146,102.42,102.32,155.43712263]
[1646207403803,47.9146,102.42,102.33,5.0]
[1646207404205,47.9146,102.42,102.34,40.72859185]
[1646207405104,14.6562,102.41,102.34,40.72859185]
[1646207405306,14.6562,102.41,102.34,45.72859185]
[1646207405505,14.6562,102.41,102.34,48.27763188]
[1646207407005,47.9146,102.42,102.34,145.76763188]
[1646207407205,47.9146,102.42,102.34,140.76763188]
[1646207407405,3.907,102.45,102.34,156.21463188]
[1646207407605,47.6496,102.45,102.35,121.6243]
[1646207407810,3.906,102.47,102.37,97.49]
[1646207408006,14.6487,102.47,102.38,40.72859185]
[1646207408206,23.11970275,102.47,102.38,148.21663188]
[1646207408404,23.11970275,102.47,102.38,50.72663188]
[1646207409305,14.6487,102.47,102.38,148.21663188]
[1646207409505,3.904,102.48,102.38,162.86253188]
[1646207410311,51.53968259,102.47,102.38,162.86253188]
[1646207410507,51.53968259,102.47,102.39,2.54904003]
[1646207410705,51.53968259,102.47,102.4,42.8470826]
[1646207411507,59.01397987,102.52,102.4,142.88612263]
[1646207411707,46.9879,102.52,102.42,97.49]
[1646207412309,3.903,102.51,102.42,97.49]
[1646207412506,59.82939559,102.5,102.42,97.49]
[1646207412715,59.82939559,102.5,102.42,100.03904003]
[1646207412912,59.82939559,102.5,102.42,2.54904003]
[1646207413509,59.82939559,102.5,102.43,102.49]
[1646207413708,59.82939559,102.5,102.44,40.72859185]
[1646207414608,59.82939559,102.5,102.43,5.0]
[1646207415109,59.82939559,102.5,102.41,48.4465]
[1646207415512,74.47289559,102.5,102.42,56.17696434]
[1646207422336,183.50289559,102.5,102.4,5.0]
[1646207422737,183.50289559,102.5,102.37,40.22214003]
[1646207422937,14.6484,102.47,102.38,97.49]
[1646207423141,2.94492996,102.46,102.39,57.0102512]
[1646207424237,17.59412996,102.46,102.39,57.0102512]
[1646207426040,115.08412996,102.46,102.39,57.0102512]
[1646207426340,118.98812996,102.46,102.39,57.0102512]
[1646207427744,118.98812996,102.46,102.39,56.9861035]
[1646207428945,21.49812996,102.46,102.39,56.9861035]
[1646207430553,17.59412996,102.46,102.39,56.9861035]
[1646207434051,23.7178,102.47,102.39,157.02514353]
[1646207434649,23.7178,102.47,102.39,181.49189587]
[1646207434852,38.0265,102.48,102.39,181.49189587]
[1646207435049,83.73249334,102.48,102.39,204.06339587]
[1646207435249,83.73249334,102.48,102.39,106.57339587]
[1646207435849,83.73249334,102.48,102.39,82.10664353]
[1646207436052,181.22249334,102.48,102.39,82.10664353]
[1646207437751,192.76249334,102.48,102.39,79.5576035]
[1646207437953,196.66649334,102.48,102.39,79.5576035]
[1646207438251,62.07616933,102.53,102.38,5.0]
[1646207438252,10.19876973,102.59,102.48,2.54904003]
[1646207438453,2.6620012,102.63,102.49,0.38397918]
[1646207438754,49.1794,102.62,102.48,0.38397918]
[1646207438951,3.9,102.61,102.47,11.92397918]
[1646207439151,97.49,102.59,102.47,11.92397918]
[1646207439351,56.21543991,102.58,102.47,111.13232992]
[1646207439551,56.21543991,102.58,102.47,133.36310149]
[1646207439751,24.9473,102.6,102.49,97.49]
[1646207439952,3.9,102.59,102.5,11.54]
[1646207440151,3.9,102.59,102.5,16.86702353]
[1646207440351,3.9,102.59,102.51,2.54904003]
[1646207440554,3.9,102.59,102.52,11.54]
[1646207440951,78.83376388,102.6,102.52,14.08904003]
[1646207441354,3.9,102.59,102.52,14.08904003]
[1646207441554,78.83376388,102.6,102.52,14.08904003]
[1646207442156,78.83376388,102.6,102.52,31.04969582]
[1646207442353,53.88646388,102.6,102.52,128.53969582]
[1646207442553,3.9,102.59,102.52,128.53969582]
[1646207442755,53.88646388,102.6,102.52,128.53969582]
[1646207442955,53.88646388,102.6,102.52,31.04969582]
[1646207443458,3.9,102.59,102.52,16.42179582]
[1646207443654,3.9,102.61,102.52,16.42179582]
[1646207443857,121.7221,102.62,102.52,16.42179582]
[1646207444459,51.61438967,102.61,102.52,16.42179582]
[1646207444657,51.61438967,102.61,102.52,11.54]
[1646207445156,149.10438967,102.61,102.52,11.54]
[1646207446057,24.2321,102.62,102.52,33.42798918]
[1646207446258,24.2321,102.62,102.52,35.97702921]
[1646207446463,24.2321,102.62,102.52,58.20780078]
[1646207447059,24.202,102.63,102.52,58.20780078]
[1646207447060,24.202,102.63,102.52,53.20780078]
[1646207447261,24.202,102.63,102.53,99.72765542]
[1646207447461,24.202,102.63,102.55,14.6236]
[1646207447661,24.202,102.63,102.55,34.03224784]
[1646207447860,24.202,102.63,102.55,39.03224784]
[1646207448062,24.202,102.63,102.55,34.03224784]
[1646207448260,75.42685581,102.63,102.55,39.03224784]
[1646207449562,75.42685581,102.63,102.55,134.07128787]
[1646207449963,51.22485581,102.63,102.56,5.0]
[1646207450162,51.22485581,102.63,102.56,126.13613954]
[1646207450362,22.7111,102.65,102.56,31.19517957]
[1646207450562,22.7111,102.65,102.56,36.19517957]
[1646207451363,54.75819332,102.64,102.56,36.19517957]
[1646207451964,54.75819332,102.64,102.56,31.19517957]
[1646207452364,22.7111,102.65,102.57,99.97725331]
[1646207452563,22.7111,102.65,102.57,35.61227441]
[1646207453364,71.73962021,102.65,102.57,35.61227441]
[1646207453564,71.73962021,102.65,102.57,133.10227441]
[1646207453765,71.73962021,102.65,102.58,2.54904003]
[1646207454268,71.73962021,102.65,102.57,28.10027441]
[1646207455667,71.73962021,102.65,102.57,33.10027441]
[1646207456469,71.73962021,102.65,102.57,28.10027441]
[1646207456873,71.73962021,102.65,102.57,33.10027441]
[1646207457471,169.22962021,102.65,102.57,1.93967441]
[1646207457671,227.73962021,102.65,102.54,63.67255891]
[1646207459071,242.36532021,102.65,102.55,5.0]
[1646207460773,3.898,102.64,102.54,66.75825891]
[1646207460973,45.6151744,102.63,102.54,66.75825891]
[1646207463076,201.6151744,102.63,102.54,4.92165891]
[1646207463279,142.29916163,102.61,102.51,6.44804003]
[1646207463579,142.29916163,102.61,102.51,28.70327252]
[1646207463777,200.80916163,102.61,102.5,3.9]
[1646207463978,147.41762324,102.59,102.49,2.54904003]
[1646207464177,155.09062324,102.59,102.49,2.54904003]
[1646207464978,155.09062324,102.59,102.5,14.6304]
[1646207465379,147.41762324,102.59,102.49,2.54904003]
[1646207466980,162.05072324,102.59,102.49,17.18184003]
[1646207468381,49.92762324,102.59,102.49,136.41383055]
[1646207468587,49.92762324,102.59,102.5,2.54904003]
[1646207468783,49.92762324,102.59,102.51,14.6288]
[1646207469185,49.92762324,102.59,102.52,2.54904003]
[1646207471785,49.92762324,102.59,102.5,27.28890609]
[1646207471985,147.41762324,102.59,102.5,27.28890609]
[1646207472987,162.05052324,102.59,102.5,27.28890609]
[1646207474897,220.56052324,102.59,102.5,4.54300609]
[1646207475092,220.56052324,102.59,102.5,2.54904003]
[1646207476092,64.56052324,102.59,102.5,2.54904003]
[1646207476293,162.05052324,102.59,102.5,19.37432415]
[1646207476895,64.56052324,102.59,102.5,19.37432415]
[1646207477294,49.92762324,102.59,102.5,139.06822905]
[1646207477497,49.92762324,102.59,102.5,150.60822905]
[1646207477695,53.82762324,102.59,102.5,150.60822905]
[1646207477895,53.82762324,102.59,102.51,5.0]
[1646207478097,3.9,102.59,102.51,102.49]
[1646207478295,24.8673,102.6,102.51,102.49]
[1646207478296,24.8673,102.6,102.52,2.54904003]
[1646207478514,24.3093,102.61,102.53,11.54]
[1646207478914,24.3093,102.61,102.54,2.54904003]
[1646207479114,49.12496347,102.6,102.54,2.54904003]
[1646207480119,49.12496347,102.6,102.54,19.39306351]
[1646207480814,24.3093,102.61,102.54,19.39306351]
[1646207481514,24.3093,102.61,102.54,16.84402348]
[1646207481714,76.64745956,102.61,102.54,16.84402348]
[1646207482315,24.3093,102.61,102.54,21.84402348]
[1646207482516,3.899,102.66,102.54,144.08696841]
[1646207482721,23.2022,102.66,102.55,133.90132879]
[1646207482916,23.2022,102.66,102.57,14.6204]
[1646207483521,49.09777962,102.65,102.57,14.6204]
[1646207484721,146.58777962,102.65,102.57,14.6204]
[1646207485521,146.58777962,102.65,102.56,2.54904003]